bitfinex-derivatives/quotes_ETHF0:USTF0_20250213
["timestamp","ask_amount","ask_price","bid_price","bid_amount"]
[1739452280338,0.75123,2661.9,2661.8,2.45124]
[1739452280635,0.75123,2661.9,2661.8,2.45126]
[1739452280832,0.75123,2661.9,2661.8,1.7]
[1739452281228,0.75123,2662.0,2661.9,0.75121]
[1739452281427,0.75123,2662.0,2661.9,4.08300411]
[1739452281629,0.75123,2662.0,2661.9,4.08302411]
[1739452283838,0.75123,2662.0,2661.9,3.33179411]
[1739452284639,0.75123,2662.0,2661.9,4.08302411]
[1739452284837,0.5668,2662.1,2662.0,0.7512]
[1739452285133,0.30087909,2663.2,2662.0,0.7512]
[1739452285134,0.5503,2662.6,2662.5,0.75106]
[1739452285334,1.30133,2662.6,2662.5,8.98565411]
[1739452285541,0.5503,2662.6,2662.5,8.98565411]
[1739452286041,1.30133,2662.6,2662.5,8.98565411]
[1739452286335,0.5503,2662.6,2662.5,8.98565411]
[1739452286539,3.2078,2663.4,2662.5,8.23459411]
[1739452286737,0.5503,2663.3,2662.8,6.53959411]
[1739452286934,0.75089,2663.1,2662.8,6.53959411]
[1739452287138,0.75095,2662.9,2662.8,6.53959411]
[1739452288235,0.75095,2662.9,2662.8,1.697]
[1739452288439,0.75095,2662.9,2662.8,5.02879411]
[1739452288640,0.5442,2663.2,2662.8,5.02879411]
[1739452288837,0.75095,2662.9,2662.8,5.02879411]
[1739452289244,0.75095,2662.9,2662.8,1.697]
[1739452290640,3.2078,2663.1,2662.5,3.33179411]
[1739452290848,5.0853,2662.8,2662.3,3.2134373]
[1739452291040,0.75109,2662.4,2662.3,0.0056373]
[1739452292342,0.5635,2662.7,2662.3,0.0056373]
[1739452292646,0.75109,2662.4,2662.3,0.0056373]
[1739452294440,1.34329,2662.4,2662.3,0.0056373]
[1739452295442,1.34329,2662.4,2662.3,7.3e-06]
[1739452295649,1.92199,2662.4,2662.3,7.3e-06]
[1739452295843,7.98786085,2662.4,2662.3,7.3e-06]
[1739452296143,1.87825,2661.7,2661.0,3.2078]
[1739452296341,0.75146,2661.1,2661.0,44.0078]
[1739452296536,0.75146,2661.1,2661.0,40.8]
[1739452296947,1.1841,2661.6,2661.0,44.0078]
[1739452297150,0.7570473,2661.3,2661.2,3.33179411]
[1739452297746,0.0056373,2661.3,2661.2,4.08322411]
[1739452298048,0.7570373,2661.3,2661.2,3.33179411]
[1739452298249,0.0056373,2661.3,2661.2,3.33179411]
[1739452298453,0.7570373,2661.3,2661.2,3.33179411]
[1739452300146,0.0056373,2661.3,2661.2,4.08322411]
[1739452301148,0.0056373,2661.3,2661.2,10.08322411]
[1739452301457,1.1178,2662.1,2661.2,10.08322411]
[1739452301458,0.75121,2662.0,2661.9,0.75121]
[1739452301657,0.7512,2662.0,2661.9,3.33179411]
[1739452302141,0.5506,2662.1,2661.9,3.33179411]
[1739452302347,0.7512,2662.1,2661.9,4.08301411]
[1739452302547,3.2078,2662.3,2662.0,0.75118]
[1739452302748,0.7512,2662.0,2661.9,3.87859411]
[1739452303146,3.2078,2662.3,2661.9,3.87859411]
[1739452303348,0.7512,2662.0,2661.9,3.87859411]
[1739452303547,3.2078,2662.3,2661.9,3.87859411]
[1739452303854,0.7512,2662.0,2661.9,1.29802]
[1739452304053,3.2078,2662.3,2661.9,0.5468]
[1739452304256,0.75119,2662.1,2662.0,0.75119]
[1739452304648,3.2078,2662.3,2661.9,0.5468]
[1739452304849,0.7512,2662.1,2661.9,1.29801]
[1739452305049,3.2078,2662.3,2661.9,1.29801]
[1739452305254,3.2078,2662.3,2661.9,0.5468]
[1739452305457,0.75117,2662.1,2662.0,0.75118]
[1739452305850,0.75116,2662.2,2662.1,0.75116]
[1739452306253,3.2078,2662.6,2662.1,3.874813]
[1739452306557,0.7512,2662.0,2661.9,1.29801]
[1739452307357,0.7512,2662.0,2661.9,0.5468]
[1739452307552,0.75123,2661.9,2661.8,8.430063]
[1739452308153,0.75121,2662.0,2661.9,0.7512]
[1739452308354,3.2078,2662.6,2661.8,7.678813]
[1739452308563,0.75113,2662.3,2662.2,0.75111]
[1739452309256,0.75114,2662.2,2662.1,3.95895]
[1739452309459,0.75114,2662.2,2662.1,3.2078]
[1739452315962,6.0,2662.2,2661.3,3.2078]
[1739452316261,0.75137,2661.4,2661.3,4.9028]
[1739452316564,0.75137,2661.4,2661.3,5.6542]
[1739452317154,0.0056373,2661.6,2661.3,5.6542]
[1739452317355,0.7569473,2661.6,2661.5,0.75134]
[1739452317556,0.0056373,2661.6,2661.3,4.9028]
[1739452317754,0.0056373,2661.6,2661.5,0.75134]
[1739452318365,0.0056373,2661.6,2661.5,5.192953]
[1739452319253,0.0056373,2661.6,2661.5,11.192953]
[1739452319455,1.30324,2662.3,2662.2,0.75114]
[1739452320258,0.5521,2662.3,2662.0,1.694]
[1739452320462,0.75117,2662.1,2662.0,1.694]
[1739452321350,5.63771,2662.3,2661.9,3.2078]
[1739452321555,0.75129,2661.7,2661.6,3.874813]
[1739452321761,0.75129,2661.7,2661.6,1.693]
[1739452322060,1.87815,2661.8,2661.2,21.02562]
[1739452322258,1.87815,2661.8,2661.3,1.694]
[1739452322259,2.4614,2661.6,2661.3,1.694]
[1739452322561,0.75137,2661.4,2661.3,1.694]
[1739452322757,0.5831,2661.6,2661.3,1.694]
[1739452322958,0.75137,2661.4,2661.3,0.75138]
[1739452323361,0.7514,2661.3,2661.2,22.11943]
[1739452323560,0.5831,2661.6,2661.2,21.368]
[1739452323863,0.75138,2661.4,2661.3,0.7514]
[1739452324261,0.5831,2661.6,2661.5,0.75134]
[1739452324465,0.5831,2661.6,2661.4,3.2078]
[1739452324667,0.75134,2661.5,2661.4,3.95914]
[1739452324866,0.75137,2661.5,2661.4,0.75135]
[1739452325560,0.5831,2661.6,2661.4,3.33116364]
[1739452325765,0.5831,2661.6,2661.5,0.75134]
[1739452325766,1.33444,2661.6,2661.5,0.75134]
[1739452325967,0.75134,2661.6,2661.5,0.75134]
[1739452326371,0.75134,2661.6,2661.4,3.33116364]
[1739452326372,0.75134,2661.5,2661.4,4.08251364]
[1739452326566,0.75134,2661.5,2661.4,3.33116364]
[1739452328563,0.7514,2661.3,2661.2,21.366]
[1739452328967,0.7514,2661.3,2661.2,1.691]
[1739452329168,1.332,2661.3,2661.2,1.691]
[1739452330071,0.75143,2661.2,2661.1,3.2134373]
[1739452331666,3.95923,2661.2,2661.1,0.0056373]
[1739452331964,0.75155,2660.8,2660.5,8.22896364]
[1739452332171,0.75155,2660.8,2660.6,0.75158]
[1739452332364,5.08641,2661.2,2660.6,0.75158]
[1739452332765,0.75155,2660.8,2660.6,0.75158]
[1739452332973,0.75155,2660.8,2660.6,0.7572173]
[1739452333164,0.75157,2660.7,2660.6,0.0056373]
[1739452333668,5.08638,2661.2,2660.6,0.0056373]
[1739452333867,0.75157,2660.7,2660.6,0.0056373]
[1739452334067,0.75154,2660.8,2660.7,0.75155]
[1739452334269,0.75155,2660.8,2660.7,0.75157]
[1739452334576,0.75155,2660.8,2660.7,0.75155]
[1739452334872,3.2078,2661.2,2660.7,0.75157]
[1739452335075,3.2078,2661.2,2660.6,0.0056373]
[1739452335273,0.75157,2660.7,2660.6,0.7572273]
[1739452335674,0.75157,2660.7,2660.6,0.0056373]
[1739452336168,0.75157,2660.7,2660.6,0.7572373]
[1739452336368,0.75157,2660.7,2660.6,0.0056373]
[1739452336970,0.75156,2660.8,2660.7,0.75153]
[1739452337174,0.75152,2660.9,2660.8,0.75151]
[1739452337368,5.0864,2661.2,2660.6,0.0056373]
[1739452337572,0.75157,2660.7,2660.6,0.0056373]
[1739452339264,0.75157,2660.7,2660.6,0.7572373]
[1739452339672,0.5664,2660.9,2660.6,0.0056373]
[1739452339869,0.75157,2660.7,2660.6,0.0056373]
[1739452340268,0.75157,2660.7,2660.6,0.7572373]
[1739452340467,1.87868,2661.1,2660.6,0.0056373]
[1739452340771,0.75148,2661.1,2661.0,0.75146]
[1739452341173,0.5806,2661.3,2660.9,0.5781]
[1739452341376,0.5806,2661.3,2661.2,0.75143]
[1739452341675,1.332,2661.3,2661.2,0.75143]
[1739452341969,0.0056373,2661.4,2661.3,0.7514]
[1739452342275,0.75143,2661.2,2661.1,4.08259364]
[1739452342870,0.75143,2661.2,2661.1,3.33116364]
[1739452343068,0.75143,2661.2,2661.1,4.08262364]
[1739452343272,0.75143,2661.2,2661.1,3.33116364]
[1739452343674,0.75143,2661.2,2661.1,4.08262364]
[1739452343975,0.0056373,2661.4,2661.1,6.53896364]
[1739452344176,0.0056373,2661.4,2661.1,3.33116364]
[1739452344378,0.75143,2661.2,2661.1,4.08261364]
[1739452345479,0.75142,2661.3,2661.2,0.7514]
[1739452346173,0.75143,2661.2,2661.1,4.08260364]
[1739452346373,0.75143,2661.2,2661.1,3.33116364]
[1739452346975,0.0056373,2661.4,2661.1,3.33116364]
[1739452347174,0.75143,2661.2,2661.1,4.08260364]
[1739452347376,0.0056373,2661.4,2661.1,3.33116364]
[1739452347673,0.7570173,2661.4,2661.3,0.7514]
[1739452347881,0.75143,2661.3,2661.2,2.44043]
[1739452348571,0.75143,2661.3,2661.2,1.689]
[1739452348968,0.75148,2661.0,2660.9,3.01859]
[1739452349180,0.0056373,2661.4,2660.9,2.2671]
[1739452349181,1.8840873,2661.4,2660.9,2.2671]
[1739452349381,0.75148,2661.1,2661.0,0.75148]
[1739452349581,3.2134373,2661.4,2660.9,2.2671]
[1739452349777,0.75148,2661.0,2660.9,3.01859]
[1739452350175,0.75148,2661.0,2660.9,3.01861]
[1739452350982,0.75143,2661.3,2661.2,0.7514]
[1739452351178,0.0056373,2661.4,2661.1,3.33116364]
[1739452351373,0.75142,2661.3,2661.2,1.3161]
[1739452351677,0.7570273,2661.4,2661.3,0.7514]
[1739452352278,0.0056373,2661.4,2661.3,0.7514]
[1739452352582,0.0056373,2661.4,2661.3,1.2922]
[1739452353278,0.0056373,2661.4,2661.3,7.2922]
[1739452353481,0.5791,2661.9,2661.7,3.33116364]
[1739452353682,0.75126,2661.8,2661.7,5.77143364]
[1739452353887,0.75126,2661.8,2661.7,5.02016364]
[1739452354188,0.75126,2661.8,2661.7,5.77145364]
[1739452354388,0.5791,2661.9,2661.7,5.02016364]
[1739452354774,1.33034,2661.9,2661.7,5.02016364]
[1739452355081,0.75124,2661.9,2661.8,0.75126]
[1739452355481,0.75126,2661.8,2661.7,5.02016364]
[1739452355678,3.7683,2662.1,2661.7,5.32164429]
[1739452355874,0.5605,2662.1,2661.8,3.2078]
[1739452356185,1.31169,2662.1,2662.0,0.7512]
[1739452356585,0.5605,2662.1,2662.0,0.7512]
[1739452356782,1.33124,2662.3,2662.2,0.75114]
[1739452357177,0.5801,2662.3,2662.2,0.75114]
[1739452357586,0.5801,2662.3,2662.0,4.08798094]
[1739452357775,0.75117,2662.1,2662.0,4.08798094]
[1739452358190,0.75117,2662.1,2662.0,3.33680094]
[1739452359090,0.5944,2662.2,2662.0,3.33680094]
[1739452359091,1.34556,2662.2,2662.0,3.33680094]
[1739452359283,0.5944,2662.2,2662.0,3.33680094]
[1739452359488,0.75117,2662.1,2662.0,4.08799094]
[1739452359784,0.5944,2662.2,2662.0,3.33680094]
[1739452359984,3.2078,2662.5,2662.0,3.33680094]
[1739452359985,3.2078,2662.5,2662.1,3.2078]
[1739452360189,0.75114,2662.3,2662.2,0.75112]
[1739452361485,0.75109,2662.4,2662.3,0.75109]
[1739452361782,1.32669,2662.5,2662.4,0.75109]
[1739452362090,4.3539,2662.8,2662.4,3.2078]
[1739452362283,0.75109,2662.4,2662.3,4.08225364]
[1739452362585,0.75107,2662.5,2662.4,0.75106]
[1739452362777,0.75105,2662.6,2662.5,0.75104]
[1739452362976,0.75109,2662.5,2662.4,0.75107]
[1739452363682,0.5756,2662.7,2662.3,3.33116364]
[1739452363987,0.75109,2662.5,2662.4,0.75109]
[1739452364585,0.5756,2662.7,2662.3,3.33116364]
[1739452364784,0.75109,2662.4,2662.3,3.33116364]
[1739452365390,0.75109,2662.4,2662.3,4.08228364]
[1739452366087,0.5756,2662.7,2662.3,3.33116364]
[1739452366278,0.75108,2662.5,2662.4,0.75105]
[1739452366483,0.75108,2662.6,2662.5,0.75103]
[1739452366688,0.75109,2662.4,2662.3,4.08226364]
[1739452366888,0.75109,2662.4,2662.3,3.33116364]
[1739452367089,0.75109,2662.4,2662.3,4.08228364]
[1739452367283,0.5756,2662.7,2662.3,3.33116364]
[1739452367489,0.75109,2662.5,2662.4,0.75106]
[1739452368596,0.75105,2662.6,2662.5,0.75103]
[1739452368788,0.5756,2662.7,2662.3,3.33116364]
[1739452368990,0.75109,2662.5,2662.4,0.75107]
[1739452369592,1.32662,2662.7,2662.6,0.75103]
[1739452369792,1.32662,2662.7,2662.6,4.08219364]
[1739452369986,0.75102,2662.7,2662.6,4.08219364]
[1739452370182,1.0,2662.9,2662.6,3.33116364]
[1739452370392,0.75099,2662.8,2662.7,1.688]
[1739452370686,1.75097,2662.9,2662.8,0.75098]
[1739452371089,1.0,2662.9,2662.7,2.2389]
[1739452371290,1.0,2662.9,2662.8,0.75098]
[1739452371291,1.75098,2662.9,2662.8,0.75098]
[1739452371493,0.75098,2662.8,2662.7,2.9899]
[1739452371795,0.75098,2662.8,2662.7,43.0389]
[1739452372388,0.75098,2662.8,2662.7,1.688]
[1739452374290,1.0,2662.9,2662.7,4.8958]
[1739452374593,1.75096,2662.9,2662.8,0.75098]
[1739452374996,0.75098,2662.8,2662.7,2.43899]
[1739452375191,1.0,2662.9,2662.7,1.688]
[1739452375495,1.75097,2662.9,2662.8,0.75098]
[1739452376294,1.0,2662.9,2662.8,0.75098]
[1739452376793,1.75095,2662.9,2662.8,0.5963]
[1739452377691,0.75098,2662.8,2662.7,1.688]
[1739452378091,0.75098,2662.8,2662.7,2.439]
[1739452378595,1.0,2662.9,2662.7,2.439]
[1739452378596,1.0,2662.9,2662.8,0.75098]
[1739452378793,1.75096,2662.9,2662.8,3.95878]
[1739452379694,1.75095,2662.9,2662.8,3.95878]
[1739452379896,1.0,2662.9,2662.8,3.95878]
[1739452380097,1.75095,2662.9,2662.8,3.95878]
[1739452380598,1.0,2662.9,2662.8,3.95878]
[1739452380797,0.75082,2663.4,2663.3,0.75081]
[1739452380993,1.32712,2663.4,2663.3,3.33116364]
[1739452381192,1.87709,2663.3,2663.0,1.688]
[1739452381396,0.75089,2663.1,2663.0,1.688]
[1739452381600,3.2078,2663.2,2662.7,3.33116364]
[1739452381798,0.75103,2662.6,2662.5,4.8958]
[1739452382003,0.75112,2662.3,2662.2,3.2078]
[1739452382300,0.75112,2662.3,2662.2,4.8958]
[1739452382494,0.75112,2662.3,2662.2,3.2078]
[1739452383593,0.75112,2662.3,2662.0,0.0056373]
[1739452383594,0.75117,2662.1,2662.0,0.0056373]
[1739452384206,0.75126,2661.8,2661.7,4.8958]
[1739452385403,3.7772373,2662.0,2661.5,23.01280094]
[1739452385600,0.75131,2661.6,2661.5,23.01280094]
[1739452386308,0.7513,2661.7,2661.5,23.76413094]
[1739452386804,3.7772373,2662.0,2661.5,23.01280094]
[1739452386992,0.5694373,2662.0,2661.7,3.2078]
[1739452387198,0.75128,2661.8,2661.7,3.2078]
[1739452388098,0.5518,2661.9,2661.5,25.27280094]
[1739452388303,0.75131,2661.6,2661.5,24.70080094]
[1739452389009,0.75131,2661.6,2661.5,0.0056373]
[1739452390208,0.59090443,2661.7,2661.0,1.688]
[1739452390408,1.87843,2661.4,2660.9,3.33116364]
[1739452390603,0.75148,2661.0,2660.9,3.33116364]
[1739452391407,0.75148,2661.0,2660.9,4.08267364]
[1739452391707,0.75148,2661.0,2660.9,3.33116364]
[1739452392501,0.75147,2661.1,2661.0,0.75147]
[1739452392703,0.5714,2661.5,2660.9,3.33116364]
[1739452392903,0.75146,2661.1,2661.0,0.5983]
[1739452393208,0.75146,2661.1,2661.0,0.75148]
[1739452393407,0.75148,2661.0,2660.9,3.33116364]
[1739452394106,0.75154,2660.8,2660.7,0.0056373]
[1739452394707,3.95934,2660.8,2660.7,0.0056373]
[1739452397407,3.95701541,2660.8,2660.7,0.0056373]
[1739452399009,3.95701541,2660.8,2660.7,7.3e-06]
[1739452399010,9.95701541,2660.8,2660.7,7.3e-06]
[1739452400212,3.95701541,2660.8,2660.7,7.3e-06]
[1739452402124,0.74921541,2660.8,2660.7,7.3e-06]
[1739452403118,3.95701541,2660.8,2660.7,7.3e-06]
[1739452404619,9.95701541,2660.8,2660.7,7.3e-06]
[1739452405624,3.95701541,2660.8,2660.7,7.3e-06]
[1739452406624,0.74921541,2660.8,2660.7,7.3e-06]
[1739452407419,3.95701541,2660.8,2660.7,7.3e-06]
[1739452408919,0.74921541,2660.8,2660.7,7.3e-06]
[1739452410633,3.95701541,2660.8,2660.7,7.3e-06]
[1739452410922,0.74921541,2660.8,2660.7,7.3e-06]
[1739452411830,3.95701541,2660.8,2660.7,7.3e-06]
[1739452416732,9.95701541,2660.8,2660.7,7.3e-06]
[1739452417127,10.53959476,2660.8,2660.7,7.3e-06]
[1739452418426,11.17925363,2660.8,2660.7,7.3e-06]
[1739452419826,5.17925363,2660.8,2660.7,7.3e-06]
[1739452420129,11.17925363,2660.8,2660.7,7.3e-06]
[1739452422731,5.17925363,2660.8,2660.7,7.3e-06]
[1739452424132,6.86825363,2660.8,2660.7,7.3e-06]
[1739452425035,5.17925363,2660.8,2660.7,7.3e-06]
[1739452425331,4.53959476,2660.8,2660.7,7.3e-06]
[1739452426122,1.33179476,2660.8,2660.7,7.3e-06]
[1739452426330,4.53959476,2660.8,2660.7,7.3e-06]
[1739452427031,1.33179476,2660.8,2660.7,7.3e-06]
[1739452427228,4.53959476,2660.8,2660.7,7.3e-06]
[1739452427428,3.95701541,2660.8,2660.7,7.3e-06]
[1739452428124,4.59781546,2660.8,2660.7,7.3e-06]
[1739452428434,5.18039481,2660.8,2660.7,7.3e-06]
[1739452432134,1.97259481,2660.8,2660.7,7.3e-06]
[1739452432340,1.33179476,2660.8,2660.7,7.3e-06]
[1739452432538,3.2078,2660.8,2660.7,7.3e-06]
[1739452432743,0.64081563,2661.6,2660.7,5.6429073]
[1739452432927,0.75143,2661.2,2661.1,3.33116364]
[1739452433129,0.75151,2660.9,2660.8,3.33116364]
[1739452433336,0.75154,2660.8,2660.7,3.7640073]
[1739452435142,0.75154,2660.8,2660.7,4.5155773]
[1739452435444,0.75154,2660.8,2660.7,3.7640073]
[1739452435743,0.75147,2661.1,2661.0,0.75147]
[1739452435935,0.75139,2661.4,2661.3,0.7514]
[1739452436134,3.2078,2661.8,2661.3,3.2078]
[1739452436329,0.75133,2661.6,2661.5,0.75132]
[1739452436533,3.2078,2661.8,2661.4,1.1048]
[1739452436733,1.1536,2661.9,2661.4,1.1048]
[1739452437047,0.75131,2661.7,2661.5,0.75134]
[1739452437236,0.0056373,2662.0,2661.6,3.2078]
[1739452437436,0.75124,2661.9,2661.8,0.75124]
[1739452438147,0.0056373,2662.0,2661.9,0.75123]
[1739452438347,0.0056373,2662.0,2661.9,3.95903]
[1739452438542,0.0056373,2662.0,2661.9,3.2078]
[1739452438746,3.2078,2662.7,2661.9,3.2078]
[1739452438948,0.75114,2662.2,2662.1,3.33116364]
[1739452439242,3.2078,2662.4,2662.0,0.5479]
[1739452439449,0.75117,2662.1,2662.0,0.5479]
[1739452439948,0.0056373,2662.3,2661.9,3.2078]
[1739452440148,0.7512,2662.0,2661.9,3.2078]
[1739452440348,0.75123,2661.9,2661.8,3.33680094]
[1739452440944,0.75123,2661.9,2661.8,0.0056373]
[1739452441741,0.75146,2661.1,2661.0,2.2298]
[1739452442348,0.75146,2661.1,2661.0,0.5418]
[1739452443146,0.5558,2661.4,2661.0,0.5418]
[1739452443648,0.75146,2661.1,2661.0,0.5418]
[1739452443849,0.5558,2661.4,2661.0,0.5418]
[1739452444147,0.75143,2661.3,2661.2,3.33116364]
[1739452444342,3.2078,2661.7,2661.2,3.33116364]
[1739452444541,0.75138,2661.4,2661.2,3.33116364]
[1739452444742,0.5558,2661.9,2661.3,0.5858]
[1739452444945,0.5543,2662.1,2661.8,3.33116364]
[1739452445248,0.75126,2661.9,2661.8,3.33116364]
[1739452445655,0.75126,2661.9,2661.8,4.08242364]
[1739452445951,0.75126,2661.9,2661.8,4.67142364]
[1739452446152,3.2078,2662.2,2661.8,4.67140364]
[1739452446350,0.75123,2661.9,2661.8,3.92016364]
[1739452447053,3.2078,2662.2,2661.8,3.92016364]
[1739452447357,3.2078,2662.2,2661.8,4.67139364]
[1739452447555,3.2078,2662.2,2661.8,3.92016364]
[1739452447750,0.75123,2661.9,2661.8,4.67141364]
[1739452448955,3.2078,2662.2,2661.8,3.92016364]
[1739452449156,0.75114,2662.2,2662.1,3.33116364]
[1739452450046,0.75114,2662.2,2662.1,4.08233364]
[1739452450246,0.75114,2662.2,2662.1,3.33116364]
[1739452454758,0.75117,2662.1,2662.0,3.2078]
[1739452454952,3.2134373,2662.3,2661.8,5.01916364]
[1739452455150,0.75123,2661.9,2661.8,3.33116364]
[1739452455356,0.75129,2661.7,2661.6,4.8958]
[1739452455550,0.75129,2661.7,2661.6,3.2078]
[1739452456959,0.75128,2661.8,2661.7,0.75126]
[1739452457160,0.75129,2661.7,2661.6,3.95909]
[1739452457457,0.5613,2662.0,2661.6,3.2078]
[1739452457658,0.75129,2661.7,2661.6,3.2078]
[1739452458251,0.75129,2661.7,2661.6,3.95911]
[1739452459359,0.75129,2661.8,2661.7,0.75126]
[1739452459754,0.75129,2661.7,2661.6,3.9591]
[1739452460060,0.75129,2661.7,2661.6,3.2078]
[1739452461550,0.75137,2661.4,2661.3,3.2078]
[1739452464060,0.5817,2661.5,2661.3,3.2078]
[1739452464264,0.75137,2661.4,2661.3,3.2078]
[1739452465866,0.75137,2661.4,2661.3,3.9592]
[1739452467059,0.75137,2661.4,2661.3,5.6472]
[1739452467259,0.75137,2661.4,2661.3,4.8958]
[1739452468861,0.75137,2661.4,2661.3,3.2078]
[1739452472160,0.75146,2661.1,2661.0,3.2078]
[1739452474466,0.75151,2660.9,2660.8,0.0056373]
[1739452491272,1.87804,2662.0,2661.3,0.75138]
[1739452491477,0.75134,2661.5,2661.4,3.33116364]
[1739452491875,0.75133,2661.6,2661.4,3.33116364]
[1739452492179,1.87801,2662.0,2661.4,3.33116364]
[1739452492381,1.87812,2661.9,2661.3,5.4524]
[1739452492572,0.75137,2661.4,2661.3,5.4524]
[1739452492779,0.75137,2661.4,2661.3,2.2446]
[1739452493579,0.75137,2661.4,2661.3,1.688]
[1739452494680,1.1087,2661.6,2661.1,3.88776364]
[1739452494881,0.75143,2661.2,2661.1,3.33116364]
[1739452495082,3.2078,2661.5,2661.0,4.8958]
[1739452495278,1.31125,2661.1,2661.0,3.2078]
[1739452495476,0.75151,2660.9,2660.8,0.0056373]
[1739452496576,3.95931,2660.9,2660.8,0.0056373]
[1739452497181,0.75168,2660.3,2660.2,3.2078]
[1739452499085,1.1496373,2660.5,2660.0,1.6936373]
[1739452499578,0.75174,2660.1,2660.0,1.6936373]
[1739452500081,0.75174,2660.1,2660.0,0.0056373]
[1739452500491,3.2078,2660.1,2659.6,3.33116364]
[1739452500784,3.2078,2659.7,2659.1,4.3762]
[1739452500986,5.21065364,2659.9,2659.1,0.30676726]
[1739452500987,3.2078,2659.4,2659.1,0.30676726]
[1739452501184,0.75202,2659.1,2659.0,3.33116364]
[1739452501384,0.75205,2659.0,2658.9,1.688]
[1739452501580,3.7936,2659.4,2658.8,3.50853574]
[1739452501779,0.75208,2658.9,2658.8,3.50853574]
[1739452501988,0.75208,2658.9,2658.8,3.2078]
[1739452502486,0.75211,2658.8,2658.7,3.33680094]
[1739452502682,0.75211,2658.8,2658.7,0.0056373]
[1739452502883,0.75227,2658.2,2658.1,3.33116364]
[1739452503186,3.90096364,2658.7,2658.1,0.30511684]
[1739452503401,0.7523,2658.1,2658.0,3.2078]
[1739452503697,0.75234,2658.0,2657.8,3.33116364]
[1739452503887,0.75236,2657.9,2657.8,3.33116364]
[1739452504090,0.5607,2658.3,2657.6,0.00376548]
[1739452504294,0.75242,2657.7,2657.6,0.00376548]
[1739452504604,0.75242,2657.7,2657.6,0.30222065]
[1739452504799,0.75242,2657.7,2657.6,0.00376548]
[1739452505000,8.22696364,2657.8,2656.9,6.53896364]
[1739452505204,6.53896364,2657.5,2656.9,3.50166401]
[1739452505498,0.75259,2657.1,2656.9,3.50166401]
[1739452505699,2.2487,2657.4,2656.9,3.50166401]
[1739452505903,0.75261,2657.0,2656.9,0.29386401]
[1739452506095,0.75261,2657.0,2656.5,3.96056]
[1739452506292,3.2078,2657.2,2656.5,3.2078]
[1739452506293,0.0157937,2656.8,2656.5,3.2078]
[1739452506600,0.7684637,2656.8,2656.5,3.2078]
[1739452506798,0.75272,2656.7,2656.5,3.2078]
[1739452507096,0.7684837,2656.8,2656.5,3.2078]
[1739452507299,0.0157937,2656.7,2656.5,3.50694534]
[1739452507491,0.0157937,2656.7,2656.5,7.39734849]
[1739452508501,0.0157937,2656.6,2656.5,7.39734849]
[1739452508706,0.0157937,2656.6,2656.5,8.15010849]
[1739452509304,0.0157937,2656.6,2656.5,14.15010849]
[1739452510101,0.0157937,2656.6,2656.5,7.39734849]
[1739452510404,0.7685237,2656.6,2656.5,3.50694534]
[1739452510907,3.2235937,2656.6,2655.9,8.78720315]
[1739452511498,0.0157937,2656.3,2655.9,8.78720315]
[1739452511702,0.0157937,2656.3,2655.9,7.40421809]
[1739452512203,0.0157937,2656.3,2655.9,7.85113315]
[1739452512204,0.75286,2656.2,2655.9,7.85113315]
[1739452512405,0.0157937,2656.1,2655.9,7.09820315]
[1739452512609,0.0157937,2656.1,2656.0,0.7529]
[1739452513012,0.03161187,2656.1,2656.0,0.7529]
[1739452514100,0.03161187,2656.1,2656.0,41.5529]
[1739452514305,0.04743017,2656.1,2656.0,41.5529]
[1739452514711,0.04743017,2656.1,2656.0,40.8]
[1739452515303,0.06324859,2656.1,2656.0,40.8]
[1739452515510,0.06324859,2656.1,2656.0,41.5529]
[1739452517017,0.83193719,2656.1,2656.0,40.8]
[1739452517217,0.83193719,2656.1,2656.0,41.5529]
[1739452517513,0.83193719,2656.1,2656.0,40.8]
[1739452517814,0.07906719,2656.1,2656.0,41.5529]
[1739452518014,0.07906719,2656.1,2655.9,7.09820315]
[1739452518215,0.7529,2656.0,2655.9,3.2078]
[1739452518411,0.07906719,2656.1,2655.8,0.30015719]
[1739452518612,3.2078,2655.9,2655.0,7.09820315]
[1739452519012,0.07906719,2655.5,2655.3,7.09820315]
[1739452519419,0.75307,2655.4,2655.3,3.2078]
[1739452519617,0.75307,2655.4,2655.3,3.50433608]
[1739452519919,0.75307,2655.4,2655.3,3.2078]
[1739452520114,0.83213719,2655.4,2655.3,3.2078]
[1739452520421,0.83213719,2655.4,2655.3,3.9609]
[1739452520620,0.07906719,2655.4,2655.3,3.9609]
[1739452520816,0.07906719,2655.4,2655.3,3.2078]
[1739452521114,0.83213719,2655.4,2655.3,3.2078]
[1739452521815,6.07906719,2655.4,2654.3,3.2078]
[1739452522013,6.07906719,2655.4,2653.0,0.18916008]
[1739452522014,0.75334,2654.5,2654.2,0.75341]
[1739452522215,0.07906719,2654.9,2654.3,3.2078]
[1739452522418,0.07906719,2654.9,2654.8,0.75324]
[1739452522914,0.57434791,2655.7,2655.6,0.75301]
[1739452523118,0.00564791,2655.7,2655.6,0.75301]
[1739452523417,2.2975,2656.7,2655.5,3.2078]
[1739452523618,3.2078,2656.5,2655.9,3.89040315]
[1739452523816,0.7529,2656.0,2655.9,3.89040315]
[1739452524118,0.5676,2656.4,2655.9,3.89040315]
[1739452524325,0.75281,2656.3,2656.2,7.09820315]
[1739452524622,0.57324791,2656.4,2656.2,7.09820315]
[1739452524818,0.75281,2656.3,2656.2,7.09820315]
[1739452525020,0.75281,2656.3,2656.2,3.2078]
[1739452525215,0.7529,2656.0,2655.9,0.00564791]
[1739452525411,3.9607,2656.0,2655.9,0.00564791]
[1739452525814,0.7529,2656.0,2655.9,0.00564791]
[1739452526324,2.45522791,2656.4,2655.9,0.00564791]
[1739452526325,0.57324791,2656.4,2655.9,0.00564791]
[1739452526520,0.7529,2656.0,2655.9,0.00564791]
[1739452526818,0.75288,2656.1,2655.9,0.00564791]
[1739452527216,0.57324791,2656.4,2655.9,0.00564791]
[1739452527822,0.75288,2656.1,2655.9,0.00564791]
[1739452528322,0.57324791,2656.4,2656.0,0.7529]
[1739452528522,0.57324791,2656.4,2655.9,0.00564791]
[1739452528722,0.57324791,2656.4,2655.9,0.75856791]